bitfinex/quotes_BTCUSD_20220101
["timestamp","ask_amount","ask_price","bid_price","bid_amount"]
[1641032569076,0.38200817,46999.0,46997.0,0.00056223]
[1641032569678,0.04147917,46999.0,46997.0,0.00056223]
[1641032570077,0.06281278,46999.0,46997.0,0.00056223]
[1641032570276,0.02133361,46999.0,46997.0,0.00056223]
[1641032571280,0.053222,47000.0,46997.0,0.00056223]
[1641032576851,0.02076822,47002.0,46999.0,0.340529]
[1641032577054,0.04081085,47002.0,47000.0,0.340529]
[1641032577251,0.02004263,47002.0,46998.0,0.0016413]
[1641032577851,0.02004263,47002.0,46998.0,0.00044]
[1641032578052,0.07324763,47002.0,46998.0,0.00044]
[1641032578251,0.340529,47001.0,46998.0,0.00044]
[1641032578452,0.390529,47001.0,46998.0,0.00044]
[1641032579054,0.41208011,47001.0,46998.0,0.00044]
[1641032579253,0.05322,47000.0,46998.0,0.00044]
[1641032580308,0.05322,47000.0,46999.0,0.340529]
[1641032580512,0.05322,47000.0,46999.0,0.24064865]
[1641032580709,0.05322,47000.0,46998.0,0.24992904]
[1641032580909,0.05322,47000.0,46999.0,0.57438908]
[1641032581509,0.06183,47000.0,46999.0,0.57438908]
[1641032581709,0.06183,47000.0,46999.0,0.340529]
[1641032581909,0.06183,47000.0,46998.0,0.24992904]
[1641032582109,0.06183,47000.0,46998.0,0.00044]
[1641032584355,0.06183,47000.0,46999.0,0.33038537]
[1641032585063,0.00861,47000.0,46999.0,0.59469729]
[1641032585258,0.00861,47000.0,46999.0,0.67091437]
[1641032587906,0.00861,47000.0,46999.0,0.340529]
[1641032588105,0.00861,47000.0,46998.0,0.00044]
[1641032589006,0.061816,47000.0,46998.0,0.00044]
[1641032590709,0.061816,47000.0,46999.0,0.340529]
[1641032590955,0.06135564,47000.0,46999.0,0.340529]
[1641032591655,0.00861,47001.0,46999.0,0.340529]
[1641032591855,0.053204,47002.0,46999.0,0.340529]
[1641032592254,0.17253738,47007.0,46999.0,0.340529]
[1641032592454,0.17253738,47007.0,46998.0,0.00044]
[1641032592855,0.053202,47004.0,47001.0,0.05]
[1641032593154,0.17253738,47007.0,47004.0,0.55841363]
[1641032593155,0.09716653,47007.0,47004.0,0.55841363]
[1641032593556,0.09716653,47007.0,47005.0,0.340529]
[1641032593759,0.10577653,47007.0,47005.0,0.340529]
[1641032593960,0.08716542,47007.0,47005.0,0.340529]
[1641032595823,0.08716542,47007.0,47006.0,0.00119092]
[1641032596023,0.08716542,47007.0,47006.0,0.34171992]
[1641032596225,0.08723845,47007.0,47006.0,0.34171992]
[1641032599959,0.08723845,47007.0,47006.0,0.00119092]
[1641032602713,0.42776745,47007.0,47006.0,0.00119092]
[1641032603412,0.44910187,47007.0,47006.0,0.00119092]
[1641032604015,0.44049187,47007.0,47006.0,0.00119092]
[1641032604414,0.51059189,47007.0,47006.0,0.00119092]
[1641032604614,0.43925747,47007.0,47006.0,0.00119092]
[1641032605313,0.46750249,47007.0,47006.0,0.00119092]
[1641032605517,0.44740247,47007.0,47006.0,0.00119092]
[1641032606159,0.10687347,47007.0,47006.0,0.00119092]
[1641032606358,0.12857676,47007.0,47006.0,0.00119092]
[1641032606561,0.10894174,47007.0,47006.0,0.00119092]
[1641032606961,0.10894174,47007.0,47006.0,0.24524508]
[1641032609061,0.08723845,47007.0,47006.0,0.24524508]
[1641032611114,0.08723845,47007.0,47006.0,0.58577408]
[1641032611815,0.08723845,47007.0,47006.0,0.24524508]
[1641032612415,0.08723845,47007.0,47006.0,0.00119092]
[1641032613015,0.42776745,47007.0,47006.0,0.00119092]
[1641032614360,0.44785809,47007.0,47006.0,0.00119092]
[1641032614560,0.49785809,47007.0,47006.0,0.00119092]
[1641032615360,0.51752616,47007.0,47006.0,0.00119092]
[1641032615563,0.10690652,47007.0,47006.0,0.00119092]
[1641032615962,0.10690652,47007.0,47006.0,0.34171992]
[1641032617210,0.02723512,47018.0,47007.0,0.09822349]
[1641032617411,0.04579588,47018.0,47011.0,0.00123706]
[1641032617610,0.00018258,47017.0,47011.0,0.00123706]
[1641032617810,0.00018258,47017.0,47016.0,0.0012353]
[1641032618010,0.03593409,47018.0,47016.0,0.97714765]
[1641032618212,0.03578076,47018.0,47017.0,0.340529]
[1641032618613,0.0359816,47018.0,47017.0,0.340529]
[1641032619214,0.01742084,47018.0,47017.0,0.62231993]
[1641032620214,0.01742084,47018.0,47017.0,0.340529]
[1641032620414,0.01742084,47018.0,47011.0,0.00876314]
[1641032620415,0.07060484,47018.0,47011.0,0.00876314]
[1641032620613,0.01742084,47018.0,47012.0,0.340529]
[1641032620879,0.00018258,47017.0,47013.0,0.23843584]
[1641032621280,0.00016432,47016.0,47011.0,0.3267179]
[1641032621476,0.00016432,47016.0,47012.0,0.93541405]
[1641032621677,0.05333707,47015.0,47014.0,0.00119069]
[1641032621877,0.05333707,47015.0,47014.0,0.34171969]
[1641032622078,0.05333707,47015.0,47014.0,0.58889028]
[1641032622277,0.00014607,47015.0,47014.0,0.58889028]
[1641032623478,0.01236607,47018.0,47014.0,0.58889028]
[1641032623683,0.01236607,47018.0,47014.0,0.34171969]
[1641032625409,0.01236607,47018.0,47015.0,0.00123517]
[1641032625609,0.01236607,47018.0,47016.0,0.340529]
[1641032626609,0.01236607,47018.0,47016.0,0.34203159]
[1641032627009,0.01236607,47018.0,47016.0,0.39521459]
[1641032627209,0.01236607,47018.0,47017.0,0.00119064]
[1641032627411,0.01236607,47018.0,47017.0,0.474893]
[1641032628212,0.00375607,47018.0,47017.0,0.474893]
[1641032630364,0.00303368,47018.0,47017.0,0.574893]
[1641032634915,0.01164368,47018.0,47017.0,0.574893]
[1641032635516,0.00861368,47018.0,47017.0,0.85746596]
[1641032635720,0.00861368,47018.0,47017.0,0.34171964]
[1641032637763,0.00861368,47018.0,47017.0,0.58656643]
[1641032638764,0.00861368,47018.0,47017.0,0.68656643]
[1641032642315,0.00861,47018.0,47017.0,0.68656643]
[1641032642513,0.00861,47018.0,47017.0,0.73783247]
[1641032642712,0.00861,47018.0,47017.0,1.86183247]
[1641032642912,0.0906909,47019.0,47018.0,0.883166]
[1641032643113,0.0906909,47019.0,47018.0,0.77747331]
[1641032643384,0.09076393,47019.0,47018.0,0.77747331]
[1641032643983,0.09076393,47019.0,47018.0,0.91064667]
[1641032644986,0.09076393,47019.0,47018.0,2.03464667]
[1641032645387,0.01611068,47021.0,47019.0,1.0306909]
[1641032645587,0.01611068,47021.0,47020.0,2.31873428]
[1641032645787,0.01611068,47021.0,47020.0,2.37189828]
[1641032645987,0.01611068,47021.0,47020.0,2.47189828]
[1641032646188,0.02197378,47038.0,47020.0,2.9037784]
[1641032646490,0.00861,47023.0,47020.0,2.67060504]
[1641032646689,0.00861,47023.0,47022.0,0.47370236]
[1641032646892,0.00861,47023.0,47022.0,0.78401188]
[1641032647116,0.00868303,47023.0,47022.0,2.00801188]
[1641032647311,0.00868303,47023.0,47022.0,0.88401188]
[1641032647510,0.00868303,47023.0,47022.0,0.57370236]
[1641032649012,0.00868303,47023.0,47022.0,1.69770236]
[1641032650620,0.01729203,47023.0,47022.0,1.69770236]
[1641032652064,0.01729203,47023.0,47022.0,0.340529]
[1641032652862,0.01729203,47023.0,47022.0,0.3417566]
[1641032656322,0.00868203,47023.0,47022.0,0.3417566]
[1641032656523,0.00868203,47023.0,47022.0,0.3949336]
[1641032660368,0.00868203,47023.0,47022.0,0.39618512]
[1641032660772,7.303e-05,47023.0,47022.0,0.39618512]
[1641032661272,7.303e-05,47023.0,47022.0,0.49618512]
[1641032662115,0.00868303,47023.0,47022.0,0.49618512]
[1641032667962,0.00868303,47023.0,47022.0,0.54618512]
[1641032668163,0.00868303,47023.0,47022.0,0.59618512]
[1641032669624,0.01611223,47025.0,47024.0,0.87861]
[1641032669821,0.01611223,47025.0,47024.0,1.45075713]
[1641032670020,0.01611223,47025.0,47024.0,1.50075713]
[1641032670622,0.01611223,47025.0,47024.0,2.01038355]
[1641032670819,0.01611223,47025.0,47024.0,2.14355691]
[1641032671021,0.01611223,47025.0,47024.0,3.26755691]
[1641032671421,0.00876298,47031.0,47024.0,3.26755691]
[1641032671720,0.00876298,47031.0,47030.0,0.4343974]
[1641032671921,0.0048,47045.0,47030.0,1.26809976]
[1641032672124,0.0412707,47046.0,47030.0,1.26809976]
[1641032672125,0.02120467,47046.0,47044.0,0.00125059]
[1641032672521,0.02120467,47046.0,47045.0,0.340529]
[1641032672727,0.02120467,47046.0,47045.0,0.053144]
[1641032672922,0.0216246,47046.0,47045.0,0.63983143]
[1641032673123,0.00041993,47046.0,47045.0,0.63983143]
[1641032673368,0.00041993,47046.0,47045.0,0.340529]
[1641032673569,0.00041993,47046.0,47044.0,0.00125059]
[1641032673774,0.00041993,47046.0,47045.0,0.340529]
[1641032673969,0.00040167,47045.0,47043.0,0.053152]
[1641032674171,0.00040167,47045.0,47044.0,0.340529]
[1641032674371,0.01611785,47047.0,47044.0,0.340529]
[1641032674771,0.00041993,47046.0,47044.0,0.340529]
[1641032675070,0.00040167,47045.0,47044.0,0.340529]
[1641032675671,0.00040167,47045.0,47044.0,0.57189712]
[1641032676473,0.00040167,47045.0,47044.0,0.340529]
[1641032676673,0.00901067,47045.0,47044.0,0.340529]
[1641032676873,0.00901067,47045.0,47044.0,0.58015516]
[1641032677124,0.00901067,47045.0,47044.0,0.58136611]
[1641032677612,0.00901067,47045.0,47044.0,0.58407204]
[1641032677819,0.00901067,47045.0,47044.0,0.68407204]
[1641032678014,0.002,47049.0,47045.0,0.3]
[1641032678217,0.01611675,47047.0,47046.0,0.340529]
[1641032678414,0.01611675,47047.0,47046.0,0.93939656]
[1641032678613,0.01611675,47047.0,47046.0,1.04062599]
[1641032679015,0.01611675,47047.0,47046.0,1.14376399]
[1641032679615,0.002,47049.0,47048.0,0.00127145]
[1641032679815,0.002,47049.0,47048.0,1.75898252]
[1641032680015,0.002,47049.0,47048.0,2.22095072]
[1641032680016,0.00207303,47049.0,47048.0,2.22095072]
[1641032680217,0.00207303,47049.0,47048.0,2.32095072]
[1641032680518,0.00207303,47049.0,47048.0,2.37408572]
[1641032680519,0.00017303,47049.0,47048.0,2.37408572]
[1641032680967,0.00861,47050.0,47049.0,2.056]
[1641032681170,0.00876249,47057.0,47049.0,1.466529]
[1641032681370,0.00876249,47057.0,47050.0,0.340529]
[1641032681568,7.303e-05,47053.0,47050.0,0.340529]
[1641032682168,7.303e-05,47053.0,47048.0,0.05127145]
[1641032682370,7.303e-05,47053.0,47048.0,0.05]
[1641032682869,7.303e-05,47053.0,47049.0,0.00270826]
[1641032684069,7.303e-05,47053.0,47050.0,0.00122977]
[1641032684270,7.303e-05,47053.0,47051.0,0.340529]
[1641032686412,7.303e-05,47053.0,47052.0,0.2813244]
[1641032686612,7.303e-05,47053.0,47052.0,0.62306432]
[1641032687211,0.01007303,47054.0,47052.0,0.77306432]
[1641032687411,0.00146303,47054.0,47053.0,0.98860733]
[1641032687611,0.00146303,47054.0,47053.0,1.22178069]
[1641032688011,0.002,47059.0,47058.0,0.00121919]
[1641032688211,0.002,47059.0,47058.0,0.73974968]
[1641032688863,0.002,47059.0,47058.0,1.28526052]
[1641032689066,0.002,47059.0,47058.0,0.89658158]
[1641032689265,0.002,47059.0,47058.0,0.94970358]
[1641032689666,0.002,47059.0,47058.0,0.95093392]
[1641032690367,0.002,47059.0,47058.0,0.60780666]
[1641032690769,0.002,47059.0,47058.0,0.34297853]
[1641032690972,0.002,47059.0,47058.0,0.34175934]
[1641032691769,0.002,47059.0,47058.0,0.00123034]
[1641032693418,0.002,47059.0,47058.0,0.0039421]
[1641032697765,0.342529,47059.0,47058.0,0.0039421]
[1641032699062,0.36125744,47059.0,47058.0,0.0039421]
[1641032700221,0.38181421,47059.0,47058.0,0.0039421]
[1641032700418,0.36308577,47059.0,47058.0,0.0039421]
[1641032701118,0.04273286,47059.0,47058.0,0.0039421]
[1641032701320,0.02217609,47059.0,47058.0,0.0039421]
[1641032701920,0.46270508,47059.0,47058.0,0.0039421]
[1641032702319,0.44252899,47059.0,47058.0,0.0039421]
[1641032702719,0.342529,47059.0,47058.0,0.0039421]
[1641032703121,0.35203469,47059.0,47058.0,0.0039421]
[1641032703565,0.01150569,47059.0,47058.0,0.0039421]
[1641032704167,0.03159416,47059.0,47058.0,0.0039421]
[1641032704365,0.02208847,47059.0,47058.0,0.0039421]
[1641032705166,0.02219802,47059.0,47058.0,0.0039421]
[1641032705365,0.00210955,47059.0,47058.0,0.0039421]
[1641032705970,0.00210955,47059.0,47058.0,0.3444711]
[1641032706571,0.00210955,47059.0,47058.0,0.0039421]
[1641032706769,0.10210954,47059.0,47058.0,0.0039421]
[1641032706968,0.44263854,47059.0,47058.0,0.0039421]
[1641032707421,0.54263854,47059.0,47058.0,0.0039421]
[1641032707623,0.54784824,47059.0,47058.0,0.0039421]
[1641032707822,1.24784824,47059.0,47058.0,4.21e-05]
[1641032708021,1.36467488,47059.0,47053.0,0.00881781]
[1641032708220,0.11682663,47054.0,47053.0,0.00881781]
[1641032708420,0.94,47053.0,47034.0,0.00033]
[1641032708622,0.09999999,47044.0,47034.0,0.00033]
[1641032708820,0.30468407,47043.0,47035.0,0.00032864]
[1641032709021,0.053167,47039.0,47035.0,0.00032864]
[1641032709226,0.053167,47039.0,47035.0,0.00286685]
[1641032709423,0.053167,47039.0,47035.0,0.00405681]
[1641032709623,0.053167,47039.0,47036.0,0.00031038]
[1641032710023,0.15316699,47039.0,47036.0,0.00031038]
[1641032711166,0.053167,47039.0,47036.0,0.00031038]
[1641032711372,0.02117293,47042.0,47036.0,0.00031038]
[1641032711869,0.02117293,47042.0,47037.0,0.340529]
[1641032712067,0.02117293,47042.0,47038.0,0.2386415]
[1641032712268,0.02117293,47042.0,47039.0,0.340529]
[1641032712466,0.053159,47046.0,47040.0,0.41675407]
[1641032712667,0.053159,47046.0,47040.0,0.41699142]
[1641032713068,0.053159,47046.0,47041.0,0.00021909]
[1641032714623,0.053159,47046.0,47042.0,0.00253986]
[1641032714815,0.053162,47044.0,47042.0,0.00372982]
[1641032715015,0.340529,47043.0,47042.0,0.00372982]
[1641032715213,0.053162,47044.0,47042.0,0.00372982]
[1641032715416,0.340529,47043.0,47042.0,0.00393065]
[1641032715615,0.053162,47044.0,47042.0,0.00393065]
[1641032716017,0.053162,47044.0,47043.0,0.00018257]
[1641032717619,0.01971948,47048.0,47043.0,0.00018257]
[1641032717816,0.01971948,47048.0,47044.0,0.340529]
[1641032718217,0.04115996,47048.0,47045.0,0.00014606]
[1641032718474,0.02144048,47048.0,47045.0,0.00014606]
[1641032718675,0.07459648,47048.0,47043.0,0.00018257]
[1641032718876,0.07144048,47048.0,47043.0,0.00018257]
[1641032719074,0.12144048,47048.0,47043.0,0.00018257]
[1641032719474,0.09999999,47046.0,47043.0,0.00018257]
[1641032719675,0.14999999,47046.0,47043.0,0.00018257]
[1641032719878,0.053163,47045.0,47043.0,0.00018257]
[1641032720076,0.103163,47045.0,47043.0,0.00018257]
[1641032720277,0.153163,47045.0,47043.0,0.00018257]
[1641032720476,0.153163,47045.0,47044.0,0.00118995]
[1641032720676,0.493692,47045.0,47044.0,0.00118995]
[1641032720877,0.493692,47045.0,47044.0,0.00135427]
[1641032721476,0.443692,47045.0,47044.0,0.00135427]
[1641032721678,0.053156,47047.0,47044.0,0.00135427]
[1641032722122,0.053156,47047.0,47045.0,0.00014606]
[1641032723119,0.106314,47051.0,47046.0,0.39486112]
[1641032723120,0.053154,47049.0,47046.0,0.39486112]
[1641032723617,0.053154,47049.0,47047.0,0.00010954]
[1641032723818,0.340529,47048.0,47047.0,0.00010954]
[1641032724019,0.340529,47048.0,47046.0,0.0001278]
[1641032724219,0.05316,47047.0,47046.0,0.0001278]
[1641032724418,0.246888,47047.0,47045.0,0.00014606]
[1641032725722,0.05316,47047.0,47045.0,0.00014606]
[1641032725971,0.053154,47049.0,47046.0,0.0011899]
[1641032726372,0.053154,47049.0,47047.0,0.00010954]
[1641032727173,0.07345472,47051.0,47047.0,0.00010954]
[1641032727374,0.02030172,47051.0,47047.0,0.00010954]
[1641032727577,0.12575632,47057.0,47047.0,0.00010954]
[1641032727578,0.22575632,47057.0,47047.0,0.00010954]
[1641032728175,0.22105632,47057.0,47047.0,0.00010954]
[1641032728577,0.12105632,47057.0,47047.0,0.00010954]
[1641032728977,0.05315,47053.0,47047.0,0.00010954]
[1641032729919,0.36565343,47052.0,47047.0,0.00010954]
[1641032730122,0.70999999,47048.0,47047.0,0.00010954]
[1641032730419,1.25576473,47048.0,47047.0,0.00010954]
[1641032730618,1.45576473,47048.0,47047.0,0.00010954]
[1641032730818,0.540529,47048.0,47047.0,0.00010954]
[1641032731220,0.540529,47048.0,47035.0,0.26887397]
[1641032731520,0.21894297,47048.0,47047.0,0.00118986]
[1641032731718,0.55947197,47048.0,47047.0,0.00118986]
[1641032731920,0.45947197,47048.0,47047.0,0.0012994]
[1641032732119,0.55947197,47048.0,47047.0,0.0012994]
[1641032732519,0.540529,47048.0,47047.0,0.0012994]
[1641032732721,0.340529,47048.0,47047.0,0.0012994]
[1641032732922,0.393694,47048.0,47047.0,0.0012994]
[1641032733120,0.68926422,47048.0,47047.0,0.0012994]
[1641032733367,0.68854193,47048.0,47047.0,0.0012994]
[1641032733567,0.68805876,47048.0,47047.0,0.0012994]
[1641032734067,0.90778147,47048.0,47047.0,0.0012994]
[1641032734469,0.92795643,47048.0,47047.0,0.0012994]
[1641032735373,0.65087105,47048.0,47047.0,0.0012994]
[1641032735570,0.61097338,47048.0,47047.0,0.0012994]
[1641032736370,0.63021388,47048.0,47047.0,0.0012994]
[1641032736570,0.61172904,47048.0,47047.0,0.0012994]
[1641032737418,0.63139551,47048.0,47047.0,0.0012994]
[1641032737620,0.90369642,47048.0,47047.0,0.0012994]
[1641032737820,0.61215501,47048.0,47047.0,0.0012994]
[1641032738417,0.63141335,47048.0,47047.0,0.0012994]
[1641032738617,0.61174688,47048.0,47047.0,0.0012994]
[1641032739417,0.63113789,47048.0,47047.0,0.0012994]
[1641032739618,0.61187955,47048.0,47047.0,0.0012994]
[1641032740523,0.63299161,47048.0,47047.0,0.0012994]
[1641032740720,0.6136006,47048.0,47047.0,0.0012994]
[1641032741170,0.91387549,47048.0,47047.0,0.0012994]
[1641032741370,0.6136006,47048.0,47047.0,0.0012994]
[1641032741573,0.61360428,47048.0,47047.0,0.0012994]
[1641032742373,0.63409247,47048.0,47047.0,0.0012994]
[1641032742673,0.61297673,47048.0,47047.0,0.0012994]
[1641032743079,0.71297672,47048.0,47047.0,0.0012994]
[1641032743475,0.73384855,47048.0,47047.0,0.0012994]
[1641032743674,0.71336036,47048.0,47047.0,0.0012994]
[1641032744077,1.01894413,47048.0,47047.0,0.0012994]
[1641032744475,1.02953396,47048.0,47047.0,0.0012994]
[1641032744718,0.71285358,47048.0,47047.0,0.0012994]
[1641032744917,1.00787989,47048.0,47047.0,0.0012994]
[1641032745317,1.02470653,47048.0,47047.0,0.0012994]
[1641032745620,1.0229263,47048.0,47047.0,0.0012994]
[1641032745818,1.00609966,47048.0,47047.0,0.0012994]
[1641032746019,0.90609967,47048.0,47047.0,0.0012994]
[1641032746419,0.92654318,47048.0,47047.0,0.0012994]
[1641032746820,0.61293205,47048.0,47047.0,0.0012994]
[1641032747621,0.63297332,47048.0,47047.0,0.0012994]
[1641032747819,0.90974449,47048.0,47047.0,0.0012994]
[1641032748473,0.93088105,47048.0,47047.0,0.0012994]
[1641032748673,0.63366637,47048.0,47047.0,0.0012994]
[1641032748873,0.59248854,47048.0,47047.0,0.0012994]
[1641032749275,0.88462239,47048.0,47047.0,0.0012994]
[1641032749474,0.61433045,47048.0,47047.0,0.0012994]
[1641032750679,0.61433045,47048.0,47046.0,0.00037951]
[1641032750680,0.393728,47047.0,47046.0,0.00037951]
[1641032751078,0.593628,47047.0,47046.0,0.00037951]
[1641032751278,0.6488377,47047.0,47042.0,0.00882685]
[1641032751477,1.22060263,47043.0,47042.0,0.00882685]
[1641032751677,1.12724193,47043.0,47042.0,0.00882685]
[1641032751877,1.20768742,47043.0,47042.0,0.00882685]
[1641032752327,1.20768742,47043.0,47034.0,0.00044]
[1641032752527,0.053178,47039.0,47034.0,0.00044]
[1641032752827,0.193728,47038.0,47037.0,0.00882695]
[1641032753029,0.243728,47038.0,47037.0,0.00882695]
[1641032753229,0.193728,47038.0,47037.0,0.00900953]
[1641032753432,0.02003558,47043.0,47037.0,0.00900953]
[1641032753630,0.053177,47039.0,47037.0,0.00900953]
[1641032753831,0.0999,47047.0,47042.0,0.00122203]
[1641032754030,0.474,47059.0,47042.0,0.00122203]
[1641032754031,0.29104792,47057.0,47046.0,0.24338787]
[1641032754231,0.0999,47056.0,47049.0,0.42438759]
[1641032754430,0.0999,47056.0,47049.0,0.67246268]
[1641032754631,0.01833656,47054.0,47049.0,0.67246268]
[1641032755130,0.053148,47053.0,47049.0,0.67246268]
[1641032755530,0.053148,47053.0,47049.0,1.01280068]
[1641032755980,0.002,47059.0,47049.0,1.01280068]
[1641032756377,0.053149,47055.0,47049.0,0.67246268]
[1641032756978,0.35452499,47055.0,47044.0,0.25956789]
[1641032757179,0.35452499,47055.0,47044.0,0.00882681]
[1641032757378,0.50452499,47055.0,47044.0,0.00882681]
[1641032757579,0.053163,47050.0,47044.0,0.00882681]
[1641032757782,0.053163,47050.0,47044.0,0.2423685]
[1641032757983,0.053163,47050.0,47046.0,0.2411075]
[1641032760326,0.053163,47050.0,47047.0,0.22849704]
[1641032760825,0.053163,47050.0,47046.0,0.2411075]
[1641032765975,0.053163,47050.0,47046.0,0.00246118]
[1641032766673,0.340338,47049.0,47046.0,0.00246118]
[1641032766873,0.053168,47048.0,47046.0,0.00246118]
[1641032767144,0.01682664,47047.0,47046.0,0.00246118]
[1641032768133,0.35716464,47047.0,47046.0,0.00246118]
[1641032768334,0.65623285,47047.0,47046.0,0.00246118]
[1641032768634,0.440338,47047.0,47046.0,0.00246118]
[1641032769234,0.340338,47047.0,47046.0,0.00246118]
[1641032769633,0.3585834,47047.0,47046.0,0.00246118]
[1641032770635,0.37715031,47047.0,47046.0,0.00246118]
[1641032770870,0.35890491,47047.0,47046.0,0.00246118]
[1641032771071,0.01856691,47047.0,47046.0,0.00246118]
[1641032771875,0.053168,47048.0,47046.0,0.00246118]
[1641032772471,0.340338,47047.0,47046.0,0.00246118]
[1641032773071,0.440338,47047.0,47046.0,0.00246118]
[1641032773271,0.348948,47047.0,47046.0,0.00246118]
[1641032773671,0.36768669,47047.0,47046.0,0.00246118]
[1641032774820,0.38809798,47047.0,47046.0,0.00246118]
[1641032775021,0.36935929,47047.0,47046.0,0.00246118]
[1641032775823,0.38919402,47047.0,47046.0,0.00246118]
[1641032776023,0.36878273,47047.0,47046.0,0.00246118]
[1641032776427,0.02844473,47047.0,47046.0,0.00246118]
[1641032776827,0.04788874,47047.0,47046.0,0.00246118]
[1641032777023,0.02805401,47047.0,47046.0,0.00246118]
[1641032778026,0.00861,47047.0,47046.0,0.00246118]
[1641032786182,0.348948,47047.0,47046.0,0.00246118]
[1641032786383,0.448948,47047.0,47046.0,0.00246118]
[1641032786983,0.47072799,47047.0,47046.0,0.00246118]
[1641032788385,0.48934321,47047.0,47046.0,0.00246118]
[1641032788587,0.46756322,47047.0,47046.0,0.00246118]
[1641032788783,0.48602519,47047.0,47046.0,0.00246118]
[1641032788984,0.46740997,47047.0,47046.0,0.00246118]
[1641032789636,0.02707197,47047.0,47046.0,0.00246118]
[1641032789835,0.04904229,47047.0,47046.0,0.27450606]
[1641032790031,0.03058032,47047.0,47046.0,0.88952775]
[1641032791031,0.00861,47047.0,47046.0,0.88952775]
[1641032794177,0.00861,47047.0,47046.0,0.9889812]
[1641032795979,0.00861,47047.0,47046.0,0.34279918]
[1641032796378,0.00861,47047.0,47046.0,0.00246118]
[1641032798234,0.00861,47047.0,47046.0,0.34279918]
[1641032799634,0.00861,47047.0,47046.0,0.00246118]
[1641032799834,0.00861,47047.0,47046.0,0.34279918]
[1641032804284,0.00861,47047.0,47046.0,0.00246118]
[1641032805331,0.04127448,47047.0,47046.0,0.00246118]
[1641032806929,0.03266448,47047.0,47046.0,0.00246118]
[1641032807629,0.103152,47048.0,47046.0,0.00246118]
[1641032808234,0.111762,47048.0,47046.0,0.00246118]
[1641032814035,0.161762,47048.0,47046.0,0.00246118]
[1641032818279,0.1529018,47048.0,47046.0,0.00246118]
[1641032820023,0.103152,47048.0,47046.0,0.00246118]
[1641032820226,0.061761,47048.0,47046.0,0.00246118]
[1641032820424,0.008609,47048.0,47046.0,0.00246118]
[1641032820624,0.008609,47048.0,47047.0,0.340338]
[1641032820827,0.008609,47048.0,47046.0,0.00246118]
[1641032821024,0.008609,47048.0,47047.0,0.340338]
[1641032821624,0.008609,47048.0,47047.0,0.34161241]
[1641032824485,0.008609,47048.0,47047.0,0.00127441]
[1641032828953,0.008609,47048.0,47047.0,0.34161241]
[1641032829152,0.008609,47048.0,47047.0,0.00127441]
[1641032830253,0.06176,47049.0,47047.0,0.00127441]
[1641032832277,0.06176,47049.0,47046.0,0.00246118]
[1641032832478,0.053158,47048.0,47046.0,0.0036515]
[1641032834831,0.061768,47048.0,47046.0,0.0036515]
[1641032835030,0.161768,47048.0,47046.0,0.0036515]
[1641032835232,0.340338,47047.0,47046.0,0.0036515]
[1641032835632,0.1,47047.0,47046.0,0.0036515]
[1641032836736,0.1828281,47048.0,47046.0,0.0036515]
[1641032837535,0.161768,47048.0,47046.0,0.0036515]
[1641032839183,0.061768,47048.0,47046.0,0.0036515]
[1641032844137,0.111768,47048.0,47046.0,0.0036515]
[1641032844938,0.340338,47047.0,47046.0,0.0036515]
[1641032845539,0.440338,47047.0,47046.0,0.0036515]
[1641032846379,0.45953045,47047.0,47046.0,0.0036515]
[1641032847379,0.4804845,47047.0,47046.0,0.0036515]
[1641032847580,0.46129205,47047.0,47046.0,0.0036515]
[1641032848381,0.47976489,47047.0,47046.0,0.0036515]
[1641032848583,0.45881084,47047.0,47046.0,0.0036515]
[1641032848783,0.57563747,47047.0,47046.0,0.0036515]
[1641032848982,0.77563747,47047.0,47046.0,0.0036515]
[1641032849184,0.67563748,47047.0,47046.0,0.0036515]
[1641032849382,0.79443502,47047.0,47034.0,0.00044]
[1641032849644,0.053177,47037.0,47034.0,0.00044]
[1641032849841,0.053177,47037.0,47035.0,0.0002191]
[1641032850138,0.45716464,47036.0,47035.0,0.0002191]
[1641032850437,0.72433074,47036.0,47035.0,0.0002191]
[1641032850639,0.82433074,47036.0,47035.0,0.0002191]
[1641032850837,1.11581584,47036.0,47035.0,0.0002191]
[1641032851340,1.13712062,47036.0,47035.0,0.0002191]
[1641032852440,0.93,47035.0,47034.0,0.0004391]
[1641032852641,0.340338,47034.0,47032.0,0.00033]
[1641032852837,0.51800241,47033.0,47032.0,0.00022]
[1641032853039,0.66800241,47033.0,47032.0,0.00022]
[1641032854481,0.68838096,47033.0,47032.0,0.00022]
[1641032855084,0.36312155,47033.0,47032.0,0.00022]
[1641032855484,0.26312155,47033.0,47032.0,0.00022]
[1641032855683,0.36312155,47033.0,47032.0,0.00022]
[1641032855883,0.36312155,47033.0,47031.0,0.00389565]
[1641032855884,1.160338,47032.0,47031.0,0.00389565]
[1641032856085,0.49482206,47032.0,47031.0,0.00367565]
[1641032856283,0.49482206,47032.0,47031.0,0.00374868]
[1641032856484,0.192743,47031.0,47029.0,0.00022]
[1641032856683,0.340338,47030.0,47029.0,0.00022]
[1641032857133,0.440338,47030.0,47029.0,0.00022]
[1641032857527,0.45967877,47030.0,47029.0,0.00022]
[1641032858227,0.75055235,47030.0,47029.0,0.00022]
[1641032858427,0.77079497,47030.0,47029.0,0.00022]
[1641032858627,0.7514542,47030.0,47029.0,0.00022]
[1641032859429,0.46058062,47030.0,47029.0,0.00022]
[1641032859630,0.3787817,47030.0,47029.0,0.00022]
[1641032859931,0.35853908,47030.0,47029.0,0.00022]
[1641032860433,0.01820108,47030.0,47029.0,0.00022]
[1641032860631,0.03885939,47030.0,47029.0,0.66984688]
[1641032860880,0.03885939,47030.0,47029.0,0.95117128]
[1641032860881,0.02065831,47030.0,47029.0,0.95117128]
[1641032861382,0.02065831,47030.0,47029.0,1.37595704]
[1641032861581,0.0087956,47037.0,47030.0,0.0206]
[1641032861779,0.0087956,47037.0,47034.0,0.340338]
[1641032861980,0.0087956,47037.0,47036.0,0.0012173]
[1641032862182,0.008609,47049.0,47036.0,0.64677207]
[1641032862380,0.00010955,47037.0,47036.0,0.64677207]
[1641032862580,0.00010955,47037.0,47036.0,0.9691705]
[1641032863481,0.05075408,47053.0,47046.0,0.26178733]
[1641032863680,0.05075408,47053.0,47047.0,0.24472428]
[1641032864282,0.05936408,47053.0,47047.0,0.24472428]
[1641032864935,0.053154,47050.0,47047.0,0.24472428]
[1641032865133,0.053154,47050.0,47046.0,0.28041531]
[1641032865334,0.10653809,47049.0,47046.0,0.01862798]
[1641032865736,0.00020083,47048.0,47046.0,0.01862798]
[1641032866134,0.00018258,47047.0,47046.0,0.04038356]
[1641032866535,0.00020083,47047.0,47046.0,0.04038356]
[1641032866934,0.00020083,47047.0,47039.0,0.24765324]
[1641032867135,0.106331,47044.0,47039.0,0.24765324]
[1641032867334,0.156331,47044.0,47039.0,0.24765324]